fUSD/lending_fUSD_20250308
["ID","MTS","AMOUNT","RATE_DAILY","PERIOD"]
[355642710,1741422640303,-500.0,8.219e-05,2]
[355642711,1741422640312,-500.0,8.219e-05,2]
[355642712,1741422640322,-782.54,8.219e-05,2]
[355642713,1741422640332,-799.16,8.219e-05,2]
[355642714,1741422640342,-540.71,8.219e-05,2]
[355642715,1741422640351,-863.05,8.219e-05,2]
[355642716,1741422640361,-636.27,8.219e-05,2]
[355642717,1741422640371,-500.0,8.219e-05,2]
[355642718,1741422640380,-1023.13,8.219e-05,2]
[355642719,1741422640390,-816.22,8.219e-05,2]
[355642720,1741422640400,-665.82,8.219e-05,2]
[355642721,1741422640410,-500.0,8.219e-05,2]
[355642722,1741422640419,-820.42,8.219e-05,2]
[355642723,1741422640429,-1021.43,8.219e-05,2]
[355642724,1741422640438,-505.42165781,8.219e-05,2]
[355642725,1741422640448,-1473.5,8.219e-05,2]
[355642726,1741422640462,-500.0,8.219e-05,2]
[355642727,1741422640472,-500.0,8.219e-05,2]
[355642728,1741422640481,-710.17,8.219e-05,2]
[355642729,1741422640491,-500.0,8.219e-05,2]
[355642730,1741422640500,-679.51,8.219e-05,2]
[355642731,1741422640510,-808.13,8.219e-05,2]
[355642732,1741422640519,-500.0,8.219e-05,2]
[355642733,1741422640528,-500.0,8.219e-05,2]
[355642734,1741422640538,-1145.27,8.219e-05,2]
[355642735,1741422640549,-502.92538668,8.219e-05,2]
[355642736,1741422640560,-260.76993512,8.219e-05,2]
[355642737,1741422640569,-500.0,8.219e-05,2]
[355642738,1741422640578,-500.0,8.219e-05,2]
[355642739,1741422640587,-799.72,8.219e-05,2]
[355642740,1741422640597,-500.0,8.219e-05,2]
[355642741,1741422640607,-636.17,8.219e-05,2]
[355642742,1741422640616,-224.97873158,8.219e-05,2]
[355642743,1741422640626,-503.26,8.219e-05,2]
[355642744,1741422640636,-792.99,8.219e-05,2]
[355642745,1741422640646,-500.0,8.219e-05,2]
[355642746,1741422640655,-500.0,8.219e-05,2]
[355642747,1741422640665,-1153.93,8.219e-05,2]
[355642748,1741422640675,-876.25,8.219e-05,2]
[355642749,1741422640685,-572.16236928,8.219e-05,2]
[355642750,1741422640696,-738.77,8.219e-05,2]
[355642751,1741422640706,-633.26,8.219e-05,2]
[355642752,1741422640715,-231.05524351,8.219e-05,2]
[355642753,1741422640933,-500.0,8.219e-05,2]
[355642754,1741422640954,-500.0,8.219e-05,2]
[355642755,1741422640964,-574.94,8.219e-05,2]
[355642756,1741422640974,-500.75932103,8.219e-05,2]
[355642757,1741422640983,-500.0,8.219e-05,2]
[355642758,1741422640993,-213.51045595,8.219e-05,2]
[355642759,1741422641005,-500.0,8.219e-05,2]
[355642760,1741422641016,-1523.02,8.219e-05,2]
[355642761,1741422641028,-500.0,8.219e-05,2]
[355642762,1741422641037,-980.91,8.219e-05,2]
[355642763,1741422641047,-500.0,8.219e-05,2]
[355642764,1741422641057,-500.0,8.219e-05,2]
[355642765,1741422641067,-509.20070109,8.219e-05,2]
[355642766,1741422641076,-509.47454863,8.219e-05,2]
[355642767,1741422641086,-500.0,8.219e-05,2]
[355642768,1741422641096,-500.0,8.219e-05,2]
[355642769,1741422641105,-866.55,8.219e-05,2]
[355642770,1741422641116,-500.0,8.219e-05,2]
[355642771,1741422641126,-1341.32,8.219e-05,2]
[355642772,1741422641135,-1091.87,8.219e-05,2]
[355642773,1741422641144,-1000.56,8.219e-05,2]
[355642774,1741422641154,-543.04282604,8.219e-05,2]
[355642775,1741422641163,-500.0,8.219e-05,2]
[355642776,1741422641173,-1066.45,8.219e-05,2]
[355642777,1741422641182,-500.0,8.219e-05,2]
[355642778,1741422641190,-500.0,8.219e-05,2]
[355642779,1741422641200,-500.0,8.219e-05,2]
[355642780,1741422641209,-500.0,8.219e-05,2]
[355642781,1741422641218,-1390.07,8.219e-05,2]
[355642782,1741422641228,-500.0,8.219e-05,2]
[355642783,1741422641237,-500.0,8.219e-05,2]
[355642784,1741422641247,-500.0,8.219e-05,2]
[355642785,1741422641256,-500.0,8.219e-05,2]
[355642786,1741422641266,-1680.38,8.219e-05,2]
[355642787,1741422641276,-218.84098029,8.219e-05,2]
[355642788,1741422641285,-500.0,8.219e-05,2]
[355642789,1741422641295,-653.23,8.219e-05,2]
[355642790,1741422641304,-500.0,8.219e-05,2]
[355642791,1741422641313,-500.0,8.219e-05,2]
[355642792,1741422641322,-536.76,8.219e-05,2]
[355642793,1741422641332,-843.46,8.219e-05,2]
[355642794,1741422641342,-1177.12,8.219e-05,2]
[355642795,1741422641351,-500.0,8.219e-05,2]
[355642796,1741422641360,-906.74,8.219e-05,2]
[355642797,1741422641370,-500.0,8.219e-05,2]
[355642798,1741422641379,-500.0,8.219e-05,2]
[355642799,1741422641388,-752.21,8.219e-05,2]
[355642800,1741422641397,-871.55,8.219e-05,2]
[355642801,1741422641407,-500.0,8.219e-05,2]
[355642802,1741422641416,-500.0,8.219e-05,2]
[355642803,1741422641425,-500.0,8.219e-05,2]
[355642804,1741422641435,-500.0,8.219e-05,2]
[355642805,1741422641444,-514.45,8.219e-05,2]
[355642806,1741422641454,-524.97384144,8.219e-05,2]
[355642807,1741422641466,-500.0,8.219e-05,2]
[355642808,1741422641484,-500.0,8.219e-05,2]
[355642809,1741422641499,-632.98,8.219e-05,2]
[355642810,1741422641509,-500.0,8.219e-05,2]
[355642811,1741422641519,-500.0,8.219e-05,2]
[355642812,1741422641529,-500.0,8.219e-05,2]
[355642813,1741422641540,-502.40202293,8.219e-05,2]
[355642814,1741422641550,-852.53,8.219e-05,2]
[355642815,1741422641560,-2495.37,8.219e-05,2]
[355642816,1741422641570,-502.54395182,8.219e-05,2]
[355642817,1741422641579,-500.0,8.219e-05,2]
[355642818,1741422641589,-736.71,8.219e-05,2]
[355642819,1741422641598,-500.0,8.219e-05,2]
[355642820,1741422641608,-1068.39,8.219e-05,2]
[355642821,1741422641618,-500.0,8.219e-05,2]
[355642822,1741422641627,-650.1,8.219e-05,2]
[355642823,1741422641637,-500.0,8.219e-05,2]
[355642824,1741422641648,-500.0,8.219e-05,2]
[355642825,1741422641657,-906.96,8.219e-05,2]
[355642826,1741422641666,-500.0,8.219e-05,2]
[355642827,1741422641675,-1014.59,8.219e-05,2]
[355642828,1741422641686,-586.29,8.219e-05,2]
[355642829,1741422641697,-692.54,8.219e-05,2]
[355642830,1741422641707,-802.64,8.219e-05,2]
[355642831,1741422641716,-500.0,8.219e-05,2]
[355642832,1741422641725,-514.31,8.219e-05,2]
[355642833,1741422641734,-1403.18,8.219e-05,2]
[355642834,1741422641743,-500.0,8.219e-05,2]
[355642835,1741422641752,-1530.76,8.219e-05,2]
[355642836,1741422641762,-1076.72,8.219e-05,2]
[355642837,1741422641771,-500.0,8.219e-05,2]
[355642838,1741422641780,-500.0,8.219e-05,2]
[355642839,1741422641789,-500.0,8.219e-05,2]
[355642840,1741422641799,-508.2,8.219e-05,2]
[355642841,1741422641808,-500.0,8.219e-05,2]
[355642842,1741422641817,-551.03,8.219e-05,2]
[355642843,1741422641827,-500.0,8.219e-05,2]
[355642844,1741422641836,-500.0,8.219e-05,2]
[355642845,1741422641847,-834.32,8.219e-05,2]
[355642846,1741422641856,-506.27,8.219e-05,2]
[355642847,1741422641865,-500.0,8.219e-05,2]
[355642848,1741422641875,-500.0,8.219e-05,2]
[355642849,1741422641884,-630.48,8.219e-05,2]
[355642850,1741422641895,-500.0,8.219e-05,2]
[355642851,1741422641906,-500.0,8.219e-05,2]
[355642852,1741422641916,-859.96,8.219e-05,2]
[355642853,1741422641925,-1285.5,8.219e-05,2]
[355642854,1741422641935,-500.0,8.219e-05,2]
[355642855,1741422641946,-500.0,8.219e-05,2]
[355642856,1741422641958,-506.10231084,8.219e-05,2]
[355642857,1741422641969,-500.0,8.219e-05,2]
[355642858,1741422641980,-500.0,8.219e-05,2]
[355642859,1741422641990,-673.52,8.219e-05,2]
[355642860,1741422642000,-505.03672204,8.219e-05,2]
[355642861,1741422642010,-500.0,8.219e-05,2]
[355642862,1741422642021,-604.92,8.219e-05,2]
[355642863,1741422642037,-1580.67,8.219e-05,2]
[355642864,1741422642047,-505.07127369,8.219e-05,2]
[355642865,1741422642056,-504.38757117,8.219e-05,2]
[355642866,1741422642066,-500.0,8.219e-05,2]
[355642867,1741422642077,-500.0,8.219e-05,2]
[355642868,1741422642087,-737.8,8.219e-05,2]
[355642869,1741422642097,-1516.04,8.219e-05,2]
[355642870,1741422642106,-603.82,8.219e-05,2]
[355642871,1741422642116,-500.0,8.219e-05,2]
[355642872,1741422642125,-1456.95,8.219e-05,2]
[355642873,1741422642136,-533.77046866,8.219e-05,2]
[355642874,1741422642145,-263.88556829,8.219e-05,2]
[355642875,1741422642154,-500.0,8.219e-05,2]
[355642876,1741422642164,-500.0,8.219e-05,2]
[355642877,1741422642174,-1005.82,8.219e-05,2]
[355642878,1741422642183,-501.58527174,8.219e-05,2]
[355642879,1741422642193,-500.0,8.219e-05,2]
[355642880,1741422642202,-1512.16,8.219e-05,2]
[355642881,1741422642211,-500.0,8.219e-05,2]
[355642882,1741422642220,-985.39,8.219e-05,2]
[355642883,1741422642229,-627.55650158,8.219e-05,2]
[355642884,1741422642238,-501.01516317,8.219e-05,2]
[355642885,1741422642248,-1219.91,8.219e-05,2]
[355642886,1741422642257,-500.0,8.219e-05,2]
[355642887,1741422642267,-500.0,8.219e-05,2]
[355642888,1741422642276,-500.0,8.219e-05,2]
[355642889,1741422642285,-1419.27,8.219e-05,2]
[355642890,1741422642294,-500.0,8.219e-05,2]
[355642891,1741422642303,-500.0,8.219e-05,2]
[355642892,1741422642313,-500.0,8.219e-05,2]
[355642893,1741422642321,-500.0,8.219e-05,2]
[355642894,1741422642329,-500.0,8.219e-05,2]
[355642895,1741422642337,-787.48,8.219e-05,2]
[355642896,1741422642345,-500.0,8.219e-05,2]
[355642897,1741422642353,-593.39,8.219e-05,2]
[355642898,1741422642362,-1512.36,8.219e-05,2]
[355642899,1741422642370,-500.0,8.219e-05,2]
[355642900,1741422642378,-500.0,8.219e-05,2]
[355642901,1741422642387,-276.83645102,8.219e-05,2]
[355642902,1741422642398,-943.02,8.219e-05,2]
[355642903,1741422642407,-500.0,8.219e-05,2]
[355642904,1741422642417,-500.0,8.219e-05,2]
[355642905,1741422642427,-500.0,8.219e-05,2]
[355642906,1741422642436,-500.0,8.219e-05,2]
[355642907,1741422642445,-500.0,8.219e-05,2]
[355642908,1741422642456,-500.0,8.219e-05,2]
[355642909,1741422642467,-539.24,8.219e-05,2]
[355642910,1741422642477,-500.0,8.219e-05,2]
[355642911,1741422642487,-511.86387147,8.219e-05,2]
[355642912,1741422642497,-500.0,8.219e-05,2]
[355642913,1741422642506,-1644.55,8.219e-05,2]
[355642914,1741422642516,-1190.86,8.219e-05,2]
[355642915,1741422642525,-500.0,8.219e-05,2]
[355642916,1741422642536,-500.0,8.219e-05,2]
[355642917,1741422642546,-1035.36,8.219e-05,2]
[355642918,1741422642556,-507.82539384,8.219e-05,2]
[355642920,1741422642565,-500.0,8.219e-05,2]
[355642922,1741422642574,-500.0,8.219e-05,2]
[355642924,1741422642584,-500.0,8.219e-05,2]
[355642926,1741422642594,-549.06092191,8.219e-05,2]
[355642928,1741422642603,-1307.65,8.219e-05,2]
[355642929,1741422642613,-500.0,8.219e-05,2]
[355642930,1741422642622,-570.16,8.219e-05,2]
[355642931,1741422642632,-502.80509123,8.219e-05,2]
[355642932,1741422642641,-500.0,8.219e-05,2]
[355642933,1741422642650,-500.0,8.219e-05,2]
[355642934,1741422642659,-500.0,8.219e-05,2]
[355642935,1741422642668,-500.0,8.219e-05,2]
[355642936,1741422642678,-798.37,8.219e-05,2]
[355642937,1741422642687,-885.74,8.219e-05,2]
[355642938,1741422642697,-500.0,8.219e-05,2]
[355642939,1741422642707,-500.0,8.219e-05,2]
[355642940,1741422642716,-502.48085958,8.219e-05,2]
[355642941,1741422642725,-7899.14,8.219e-05,2]
[355642942,1741422642734,-1401.28,8.219e-05,2]
[355642943,1741422642744,-568.48,8.219e-05,2]
[355642944,1741422642754,-500.0,8.219e-05,2]
[355642945,1741422642763,-306.9591107,8.219e-05,2]
[355642946,1741422642785,-1124.4008893,8.219e-05,2]
[355642947,1741422642794,-500.0,8.219e-05,2]
[355642948,1741422642803,-1135.91,8.219e-05,2]
[355642949,1741422642813,-1871.42,8.219e-05,2]
[355642950,1741422642822,-500.0,8.219e-05,2]
[355642951,1741422642831,-503.56459611,8.219e-05,2]
[355642952,1741422642841,-3325.42,8.219e-05,2]
[355642953,1741422642850,-504.73951948,8.219e-05,2]
[355642954,1741422642859,-500.0,8.219e-05,2]
[355642955,1741422642869,-1472.74,8.219e-05,2]
[355642956,1741422642880,-500.0,8.219e-05,2]
[355642957,1741422642891,-503.07299347,8.219e-05,2]
[355642958,1741422642901,-500.0,8.219e-05,2]
[355642959,1741422642911,-500.0,8.219e-05,2]
[355642960,1741422642920,-500.0,8.219e-05,2]
[355642961,1741422642930,-673.59,8.219e-05,2]
[355642962,1741422642941,-1429.94,8.219e-05,2]
[355642963,1741422642950,-500.0,8.219e-05,2]
[355642964,1741422642959,-3403.71,8.219e-05,2]
[355642965,1741422642968,-89.63999512,8.219e-05,2]
[355642966,1741422642981,-410.36000488,8.219e-05,2]
[355642967,1741422642990,-500.0,8.219e-05,2]
[355642968,1741422643000,-504.38745807,8.219e-05,2]
[355642969,1741422643010,-744.71,8.219e-05,2]
[355642970,1741422643019,-2412.91,8.219e-05,2]
[355642971,1741422643028,-500.0,8.219e-05,2]
[355642972,1741422643038,-500.0,8.219e-05,2]
[355642973,1741422643047,-500.0,8.219e-05,2]
[355642974,1741422643058,-330.43889646,8.219e-05,2]
[355642976,1741422643102,-170.56749582,8.219e-05,2]
[355642977,1741422643112,-908.95,8.219e-05,2]
[355642978,1741422643120,-500.0,8.219e-05,2]
[355642979,1741422643129,-500.0,8.219e-05,2]
[355642980,1741422643138,-97.75459417,8.219e-05,2]
[355642981,1741422643149,-798.20572028,8.219e-05,2]
[355642982,1741422643160,-1270.15857547,8.219e-05,2]
[355642983,1741422643172,-224.83111008,8.219e-05,2]
[355642984,1741422643181,-500.0,8.219e-05,2]
[355642986,1741422643191,-980.49,8.219e-05,2]
[355642988,1741422643200,-13028.51882855,8.219e-05,2]
[355642991,1741422643212,-17041.66117145,8.219e-05,2]
[355642993,1741422643221,-500.0,8.219e-05,2]
[355642995,1741422643230,-500.0,8.219e-05,2]
[355642996,1741422643239,-505.87715402,8.219e-05,2]
[355642999,1741422643249,-500.0,8.219e-05,2]
[355643000,1741422643258,-7240.97,8.219e-05,2]
[355643002,1741422643267,-501.09740227,8.219e-05,2]
[355643004,1741422643276,-500.0,8.219e-05,2]
[355643006,1741422643285,-709.52,8.219e-05,2]
[355643008,1741422643295,-2173.61,8.219e-05,2]
[355643010,1741422643304,-2495.22,8.219e-05,2]
[355643012,1741422643313,-481.64964,8.219e-05,2]
[355643014,1741422643322,-500.0,8.219e-05,2]
[355643016,1741422643332,-502.46229094,8.219e-05,2]
[355643018,1741422643341,-786.89,8.219e-05,2]
[355643020,1741422643351,-3136.38,8.219e-05,2]
[355643022,1741422643360,-1269.38,8.219e-05,2]
[355643024,1741422643369,-505.93144079,8.219e-05,2]
[355643026,1741422643378,-1989.81,8.219e-05,2]
[355643028,1741422643387,-3301.95,8.219e-05,2]
[355643030,1741422643396,-2613.43,8.219e-05,2]
[355643032,1741422643405,-500.0,8.219e-05,2]
[355643034,1741422643414,-1420.07,8.219e-05,2]
[355643036,1741422643423,-501.16554797,8.219e-05,2]
[355643038,1741422643433,-512.92,8.219e-05,2]
[355643040,1741422643442,-500.0,8.219e-05,2]
[355643042,1741422643452,-500.0,8.219e-05,2]
[355643044,1741422643464,-651.4,8.219e-05,2]
[355643046,1741422643473,-565.01,8.219e-05,2]
[355643048,1741422643482,-891.84,8.219e-05,2]
[355643050,1741422643491,-500.0,8.219e-05,2]
[355643052,1741422643500,-582.63,8.219e-05,2]
[355643054,1741422643509,-668.43,8.219e-05,2]
[355643056,1741422643518,-802.265568,8.219e-05,2]
[355643058,1741422643528,-500.0,8.219e-05,2]
[355643060,1741422643540,-500.0,8.219e-05,2]
[355643062,1741422643549,-1733.8,8.219e-05,2]
[355643064,1741422643558,-2275.15,8.219e-05,2]
[355643066,1741422643567,-500.0,8.219e-05,2]
[355643068,1741422643577,-500.0,8.219e-05,2]
[355643070,1741422643586,-1394.76,8.219e-05,2]
[355643072,1741422643598,-162.866886,8.219e-05,2]
[355643074,1741422643607,-579.51,8.219e-05,2]
[355643076,1741422643617,-4858.43,8.219e-05,2]
[355643078,1741422643626,-926.12,8.219e-05,2]
[355643080,1741422643636,-3400.56,8.219e-05,2]
[355643082,1741422643645,-515.30946201,8.219e-05,2]
[355643084,1741422643654,-500.0,8.219e-05,2]
[355643086,1741422643663,-505.77107042,8.219e-05,2]
[355643088,1741422643672,-8431.63,8.219e-05,2]
[355643090,1741422643682,-2450.74,8.219e-05,2]
[355643092,1741422643691,-502.43416205,8.219e-05,2]
[355643094,1741422643700,-500.0,8.219e-05,2]
[355643096,1741422643710,-6916.68,8.219e-05,2]
[355643098,1741422643719,-1222.15,8.219e-05,2]
[355643100,1741422643728,-500.0,8.219e-05,2]
[355643102,1741422643737,-525.78,8.219e-05,2]
[355643104,1741422643746,-1673.81,8.219e-05,2]
[355643106,1741422643756,-2405.37,8.219e-05,2]
[355643108,1741422643764,-500.0,8.219e-05,2]
[355643110,1741422643773,-536.71584897,8.219e-05,2]
[355643112,1741422643783,-500.0,8.219e-05,2]
[355643114,1741422643792,-873.02,8.219e-05,2]
[355643116,1741422643801,-1603.35,8.219e-05,2]
[355643118,1741422643810,-806.15,8.219e-05,2]
[355643120,1741422643819,-1130.53,8.219e-05,2]
[355643122,1741422643828,-500.0,8.219e-05,2]
[355643124,1741422643837,-7224.59,8.219e-05,2]
[355643126,1741422643846,-2377.44,8.219e-05,2]
[355643128,1741422643855,-500.0,8.219e-05,2]
[355643130,1741422643864,-936.54,8.219e-05,2]
[355643132,1741422643873,-500.0,8.219e-05,2]
[355643134,1741422643882,-500.0,8.219e-05,2]
[355643136,1741422643891,-500.0,8.219e-05,2]
[355643138,1741422643900,-781.53,8.219e-05,2]
[355643140,1741422643909,-156.24366374,8.219e-05,2]
[355643142,1741422643918,-500.0,8.219e-05,2]
[355643144,1741422643927,-1993.59,8.219e-05,2]
[355643146,1741422643937,-3911.11,8.219e-05,2]
[355643148,1741422643946,-992.36,8.219e-05,2]
[355643150,1741422643955,-506.73131647,8.219e-05,2]
[355643152,1741422643964,-500.0,8.219e-05,2]
[355643154,1741422643973,-1153.68,8.219e-05,2]
[355643156,1741422643982,-1899.44,8.219e-05,2]
[355643158,1741422643991,-4046.78,8.219e-05,2]
[355643160,1741422644000,-220.77766333,8.219e-05,2]
[355643162,1741422644009,-350.0,8.219e-05,2]
[355643164,1741422644018,-1219.93,8.219e-05,2]
[355643166,1741422644027,-1287.44,8.219e-05,2]
[355643168,1741422644037,-500.76,8.219e-05,2]
[355643170,1741422644046,-500.0,8.219e-05,2]
[355643172,1741422644055,-3290.5,8.219e-05,2]
[355643174,1741422644064,-501.39379348,8.219e-05,2]
[355643176,1741422644073,-2739.84834302,8.219e-05,2]
[355643180,1741422644105,-311.24165698,8.219e-05,2]
[355643182,1741422644114,-3664.3,8.219e-05,2]
[355643184,1741422644124,-500.0,8.219e-05,2]
[355643186,1741422644133,-500.0,8.219e-05,2]
[355643188,1741422644143,-1670.16,8.219e-05,2]
[355643190,1741422644152,-500.0,8.219e-05,2]
[355643192,1741422644162,-1015.33,8.219e-05,2]
[355643194,1741422644172,-1658.92,8.219e-05,2]
[355643196,1741422644181,-6353.89,8.219e-05,2]
[355643198,1741422644190,-2164.81,8.219e-05,2]
[355643200,1741422644199,-1010.86,8.219e-05,2]
[355643202,1741422644208,-1516.38,8.219e-05,2]
[355643204,1741422644218,-500.0,8.219e-05,2]
[355643206,1741422644227,-2809.78,8.219e-05,2]
[355643208,1741422644236,-2050.34,8.219e-05,2]
[355643210,1741422644246,-335.42521353,8.219e-05,2]
[355643212,1741422644255,-500.0,8.219e-05,2]
[355643214,1741422644264,-500.0,8.219e-05,2]
[355643216,1741422644274,-9803.27,8.219e-05,2]
[355643218,1741422644283,-3784.56,8.219e-05,2]
[355643220,1741422644292,-1853.68,8.219e-05,2]
[355643222,1741422644301,-1018.16,8.219e-05,2]
[355643224,1741422644310,-1326.37,8.219e-05,2]
[355643226,1741422644319,-1167.93,8.219e-05,2]
[355643228,1741422644329,-500.0,8.219e-05,2]
[355643230,1741422644338,-2518.16,8.219e-05,2]
[355643231,1741422644347,-505.98606748,8.219e-05,2]
[355643234,1741422644357,-2925.77,8.219e-05,2]
[355643236,1741422644366,-3107.24,8.219e-05,2]
[355643238,1741422644376,-500.0,8.219e-05,2]
[355643240,1741422644385,-500.0,8.219e-05,2]
[355643242,1741422644394,-1181.95,8.219e-05,2]
[355643244,1741422644404,-511.91219026,8.219e-05,2]
[355643246,1741422644413,-750.57,8.219e-05,2]
[355643248,1741422644423,-500.0,8.219e-05,2]
[355643250,1741422644432,-2462.11,8.219e-05,2]
[355643251,1741422644441,-678.63,8.219e-05,2]
[355643252,1741422644452,-500.0,8.219e-05,2]
[355643253,1741422644462,-5088.93,8.219e-05,2]
[355643254,1741422644473,-1535.84,8.219e-05,2]
[355643255,1741422644482,-500.0,8.219e-05,2]
[355643256,1741422644491,-19098.02,8.219e-05,2]
[355643257,1741422644501,-500.0,8.219e-05,2]
[355643258,1741422644511,-500.0,8.219e-05,2]
[355643259,1741422644522,-299.39827446,8.219e-05,2]
[355643261,1741422644532,-403.91449808,8.219e-05,2]
[355643263,1741422644544,-359.93885958,8.219e-05,2]
[355643294,1741422645368,-402.91602697,8.119e-05,2]
[355643298,1741422647537,-93.42463089,8.119e-05,2]
[355643299,1741422647547,-1248.74664234,8.219e-05,2]
[355643300,1741422647557,-2343.85,8.219e-05,2]
[355643301,1741422647566,-2561.34144194,8.219e-05,2]
[355643302,1741422647589,-558.91855806,8.219e-05,2]
[355643303,1741422647598,-1797.24,8.219e-05,2]
[355643304,1741422647607,-2494.92,8.219e-05,2]
[355643305,1741422647616,-1225.47,8.219e-05,2]
[355643306,1741422647626,-500.0,8.219e-05,2]
[355643307,1741422647635,-500.0,8.219e-05,2]
[355643308,1741422647644,-1930.77987845,8.219e-05,2]
[355643310,1741423110450,766.272,8.055e-05,2]
[355643311,1741423154851,400.0,0.0002,120]
[355643312,1741423188227,800.0,8e-05,2]
[355643313,1741423210042,600.0,0.0002,120]
[355643314,1741423222554,600.0,8e-05,2]
[355643322,1741423669335,219.5,7.882e-05,2]
[355643354,1741423831908,-474.18521572,8.208e-05,2]
[355643355,1741423831963,-5453.82108573,8.208e-05,2]
[355643356,1741423831974,-300.0,8.217e-05,2]
[355643357,1741423831984,-272.35330625,8.218e-05,2]
[355643358,1741423831997,-533.22015203,8.218e-05,2]
[355643359,1741423832015,-2084.09225182,8.218e-05,2]
[355643360,1741423832071,-438.97982347,8.218e-05,2]
[355643361,1741423832227,-626.0,8.218e-05,2]
[355643364,1741423837860,-517.34603854,8.218e-05,2]
[355643377,1741423840008,-643.65507974,8.218e-05,2]
[355643378,1741423840060,-434.54746564,8.218e-05,2]
[355643379,1741423840221,-883.25918109,8.218e-05,2]
[355643380,1741423840346,-1234.15499132,8.218e-05,2]
[355643490,1741423844298,-543.51069544,8.218e-05,2]
[355643492,1741423844308,-308.92639246,8.218e-05,2]
[355643494,1741423844319,-814.82264092,8.218e-05,2]
[355643500,1741423844360,-668.97558008,8.218e-05,2]
[355643660,1741423846035,-468.68885309,8.218e-05,2]
[355643661,1741423846047,-1517.8319108,8.218e-05,2]
[355643662,1741423846088,-4348.48764898,8.218e-05,2]
[355643663,1741423846195,-2880.13726714,8.218e-05,2]
[355643664,1741423846207,-8573.91310142,8.218e-05,2]
[355643665,1741423846300,-563.2364726,8.218e-05,2]
[355643672,1741424310305,613.018,8.055e-05,2]
[355643777,1741425032132,-261.71,8.172e-05,2]
[355643778,1741425032142,-35.76992462,8.193e-05,2]
[355643779,1741425032187,-124.26026492,8.193e-05,2]
[355643780,1741425032198,-500.0,8.193e-05,2]
[355643781,1741425032208,-300.0,8.217e-05,2]
[355643782,1741425032217,-1174.34323508,8.218e-05,2]
[355643783,1741425032230,-410.11441314,8.218e-05,2]
[355643784,1741425032255,-74892.38382594,8.218e-05,2]
[355643785,1741425032265,-154.734979,8.219e-05,2]
[355643786,1741425032275,-500.0,8.219e-05,2]
[355643787,1741425032285,-848.84,8.219e-05,2]
[355643788,1741425032295,-516.77,8.219e-05,2]
[355643789,1741425032305,-645.53,8.219e-05,2]
[355643790,1741425032315,-500.0,8.219e-05,2]
[355643791,1741425032324,-463.09109728,8.219e-05,2]
[355643792,1741425032335,-500.0,8.219e-05,2]
[355643793,1741425032346,-500.0,8.219e-05,2]
[355643794,1741425032355,-500.0,8.219e-05,2]
[355643795,1741425032364,-500.0,8.219e-05,2]
[355643796,1741425032374,-713.68,8.219e-05,2]
[355643797,1741425032383,-503.88,8.219e-05,2]
[355643798,1741425032393,-500.0,8.219e-05,2]
[355643799,1741425032402,-754.1,8.219e-05,2]
[355643800,1741425032412,-772.56,8.219e-05,2]
[355643801,1741425032422,-719.3,8.219e-05,2]
[355643802,1741425032432,-500.0,8.219e-05,2]
[355643803,1741425032441,-500.0,8.219e-05,2]
[355643804,1741425032452,-500.0,8.219e-05,2]
[355643805,1741425032463,-514.96,8.219e-05,2]
[355643806,1741425032474,-518.86495779,8.219e-05,2]
[355643807,1741425032483,-650.36,8.219e-05,2]
[355643808,1741425032493,-519.86433357,8.219e-05,2]
[355643809,1741425032508,-500.0,8.219e-05,2]
[355643811,1741425032519,-500.0,8.219e-05,2]
[355643813,1741425032528,-500.0,8.219e-05,2]
[355643814,1741425032538,-500.0,8.219e-05,2]
[355643815,1741425032548,-500.0,8.219e-05,2]
[355643816,1741425032558,-389.45219745,8.219e-05,2]
[355643817,1741425032567,-500.0,8.219e-05,2]
[355643818,1741425032577,-509.61,8.219e-05,2]
[355643819,1741425032587,-500.0,8.219e-05,2]
[355643820,1741425032597,-500.0,8.219e-05,2]
[355643821,1741425032607,-502.16049217,8.219e-05,2]
[355643822,1741425032617,-522.21,8.219e-05,2]
[355643824,1741425032627,-845.98,8.219e-05,2]
[355643826,1741425032636,-788.1,8.219e-05,2]